bitfinex-derivatives/quotes_SOLF0:USTF0_20250831
["timestamp","ask_amount","ask_price","bid_price","bid_amount"]
[1756602106484,7.79,205.19,205.07,5.85576708]
[1756602106784,7.79,205.25,205.12,6.40386693]
[1756602106981,7.79,205.23,205.12,6.40386693]
[1756602108185,7.79,205.23,205.11,4.03386693]
[1756602109883,7.79,205.23,205.1,4.03386693]
[1756602110386,7.79,205.23,205.09,4.03386693]
[1756602110578,2.44137133,205.2,205.09,4.03386693]
[1756602110781,7.79,205.19,205.09,4.03386693]
[1756602110984,7.79,205.19,205.08,4.03386693]
[1756602111788,7.79,205.19,205.09,4.03386693]
[1756602112287,7.79,205.19,205.08,4.03386693]
[1756602116294,7.79,205.19,205.09,4.03386693]
[1756602117597,7.79,205.19,205.1,2.37]
[1756602117797,7.79,205.19,205.09,4.03386693]
[1756602118698,7.79,205.17,205.09,4.03386693]
[1756602118894,2.36904995,205.16,205.09,4.03386693]
[1756602119198,2.36924216,205.15,205.08,4.03386693]
[1756602119398,2.36924216,205.14,205.08,4.03386693]
[1756602119697,7.79,205.17,205.08,6.40386693]
[1756602119698,2.36924216,205.13,205.08,6.40386693]
[1756602119898,2.36924216,205.12,205.08,6.40386693]
[1756602120097,2.36924216,205.11,205.08,6.40386693]
[1756602120295,2.36924216,205.1,205.08,6.40386693]
[1756602120499,2.36924216,205.1,205.06,5.37576708]
[1756602120500,7.79,205.17,205.09,6.40386693]
[1756602120799,2.36932279,205.16,205.1,4.03386693]
[1756602120996,10.15932279,205.15,205.09,4.03386693]
[1756602121199,2.36932279,205.14,205.09,4.03386693]
[1756602121395,2.36932279,205.13,205.08,4.03386693]
[1756602121597,7.79,205.11,205.04,4.03386693]
[1756602121901,2.36932279,205.1,205.04,4.03386693]
[1756602122095,7.79,205.11,205.04,4.03386693]
[1756602122096,7.79,205.08,205.04,4.03386693]
[1756602122296,2.36932279,205.07,205.04,4.03386693]
[1756602122595,7.79,205.08,205.04,4.03386693]
[1756602122596,2.36932279,205.06,205.04,4.03386693]
[1756602122803,2.36932279,205.05,205.04,4.03386693]
[1756602126399,2.36932279,205.05,205.03,4.03386693]
[1756602126700,2.36932279,205.04,205.03,4.03386693]
[1756602128601,2.36932279,205.04,205.03,6.38386693]
[1756602128602,2.36883264,205.04,205.03,6.38386693]
[1756602128902,2.36883264,205.04,205.03,4.03386693]
[1756602129100,2.36883264,205.04,205.02,4.03386693]
[1756602129400,2.36883264,205.03,205.02,4.03386693]
[1756602129802,2.36883264,205.03,204.99,2.35]
[1756602129803,2.36883264,205.03,204.99,4.03386693]
[1756602130001,9.99883264,205.02,204.98,4.03386693]
[1756602130193,2.36883264,205.01,204.98,4.03386693]
[1756602130393,2.36883264,205.0,204.98,4.03386693]
[1756602130595,7.63,205.02,204.97,4.03386693]
[1756602130596,2.36883264,204.99,204.97,4.03386693]
[1756602130797,2.36883264,204.98,204.97,4.03386693]
[1756602130996,2.36883264,204.98,204.94,5.37576708]
[1756602130997,2.36883264,204.98,204.96,6.38386693]
[1756602131197,2.36883264,204.97,204.96,6.38386693]
[1756602131398,2.36883264,204.97,204.95,4.03386693]
[1756602131597,2.36883264,204.96,204.95,4.03386693]
[1756602132397,2.36883264,204.96,204.93,6.38386693]
[1756602132604,2.36883264,204.95,204.93,2.35]
[1756602132903,2.36883264,204.94,204.93,2.35]
[1756602135306,2.36883264,204.94,204.9,5.49924746]
[1756602135607,2.36883264,204.93,204.9,5.49924746]
[1756602135809,0.03611355,204.96,204.9,7.84924746]
[1756602136007,2.36159359,204.95,204.91,2.35]
[1756602136204,2.36159359,204.94,204.91,2.35]
[1756602136404,0.03611355,204.96,204.9,7.84924746]
[1756602136704,2.36045021,204.95,204.91,2.35]
[1756602136902,0.03611355,204.96,204.93,1.46538053]
[1756602137099,2.36031749,204.95,204.93,1.46538053]
[1756602137304,0.03611355,204.96,204.93,3.81538053]
[1756602137506,2.35949304,204.95,204.93,1.46538053]
[1756602137712,7.66611355,204.96,204.93,1.46538053]
[1756602138002,2.35955122,204.95,204.93,1.46538053]
[1756602138204,2.35955122,204.94,204.93,1.46538053]
[1756602138405,2.35955122,204.94,204.93,3.81538053]
[1756602138908,2.35955122,204.94,204.93,2.35]
[1756602139311,0.03611355,204.96,204.93,2.35]
[1756602139507,7.63,205.04,204.95,1.46538053]
[1756602139707,9.98923988,205.03,204.98,3.81538053]
[1756602139904,9.98923988,205.02,204.96,1.46538053]
[1756602140107,9.98923988,205.01,204.94,2.35]
[1756602140304,2.35923988,205.0,204.95,2.35]
[1756602140610,2.35923988,204.99,204.97,2.35]
[1756602140812,2.35923988,204.98,204.97,2.35]
[1756602141812,2.35923988,204.98,204.96,3.81538053]
[1756602142008,2.35877686,204.97,204.95,1.49895367]
[1756602142209,7.63,205.04,204.95,3.84895367]
[1756602142511,2.35846722,205.03,204.95,3.84895367]
[1756602142812,2.35846722,205.02,204.95,3.84895367]
[1756602143009,9.98846722,205.01,204.95,3.84895367]
[1756602143210,7.63,204.99,204.95,0.03357314]
[1756602143410,9.98846722,204.98,204.92,1.46538053]
[1756602143610,2.35846722,204.97,204.93,2.36]
[1756602143811,2.35846722,204.96,204.95,0.03730702]
[1756602144314,7.63,205.01,204.95,0.03730702]
[1756602144511,9.98791948,205.0,204.95,1.50268755]
[1756602144716,2.35791948,204.99,204.95,1.50268755]
[1756602145014,2.35791948,204.98,204.96,2.36]
[1756602145209,7.63,205.03,204.96,2.36]
[1756602145413,2.35761498,205.02,204.96,2.36]
[1756602145713,9.98761498,205.01,204.96,2.36]
[1756602145914,2.35761498,205.0,204.95,1.50268755]
[1756602146115,2.35761498,204.99,204.96,2.36]
[1756602146313,7.63,205.04,204.96,2.36]
[1756602146508,2.35757103,205.03,204.96,2.36]
[1756602146709,2.35757103,205.02,204.96,3.82538053]
[1756602146906,2.35757103,205.01,204.96,1.46538053]
[1756602147208,5.40655039,205.19,204.95,0.0326492]
[1756602147209,2.35757103,205.0,204.99,2.36]
[1756602147414,7.63,205.08,204.99,2.36]
[1756602147614,7.63,205.08,205.04,3.82538053]
[1756602148713,335.31,205.12,205.04,1.46538053]
[1756602149115,335.31,205.12,205.03,2.36]
[1756602149414,335.31,205.12,205.06,0.03181135]
[1756602150213,335.31,205.12,205.06,3.85719188]
[1756602150214,7.63,205.12,205.06,3.85719188]
[1756602150410,7.63,205.12,205.06,0.03181135]
[1756602153815,7.63,205.1,205.06,0.03181135]
[1756602154114,7.63,205.08,204.95,1.46538053]
[1756602157117,3.56717267,205.07,204.95,1.46538053]
[1756602157321,7.63,205.08,204.95,1.46538053]
[1756602157617,7.87,205.06,204.95,1.46538053]
[1756602158411,1.46538053,205.07,204.94,97.90769199]
[1756602158618,11.43833524,205.06,204.94,2.39]
[1756602158813,7.87,205.04,204.94,2.39]
[1756602159515,9.33538053,205.04,204.92,1.46538053]
[1756602161317,9.33538053,205.04,204.91,4.03386693]
[1756602161523,7.87,205.02,204.9,6.42386693]
[1756602161723,7.87,205.0,204.9,6.42386693]
[1756602161920,7.87,205.0,204.9,2.39]
[1756602162223,7.87,205.0,204.89,4.03386693]
[1756602162418,1.46538053,204.98,204.87,4.03386693]
[1756602162620,7.87,204.97,204.87,4.03386693]
[1756602162914,7.87,204.97,204.87,6.42386693]
[1756602163114,7.87,204.97,204.9,2.39]
[1756602164722,7.87,204.97,204.9,6.42386693]
[1756602165422,7.87,204.97,204.9,7.88924746]
[1756602166628,7.87,204.97,204.9,2.39]
[1756602169725,7.87,204.97,204.88,4.03386693]
[1756602170127,5.40655039,205.11,204.89,5.49924746]
[1756602170330,7.87,205.05,204.93,2.39]
[1756602170626,7.87,205.05,204.96,2.39]
[1756602170822,7.87,205.05,204.98,1.46538053]
[1756602171028,457.42,205.1,204.99,2.39]
[1756602171223,335.63,205.1,205.02,2.39]
[1756602172230,7.87,205.08,204.99,1.46538053]
[1756602173825,7.87,205.08,204.98,2.39]
[1756602174731,3.57399827,205.07,204.98,2.39]
[1756602174926,1.46538053,205.09,204.96,5.49924746]
[1756602174927,7.87,205.06,204.96,5.49924746]
[1756602175132,7.87,205.06,204.96,1.46538053]
[1756602175329,9.33538053,205.06,204.94,4.03386693]
[1756602175529,7.87,205.04,204.92,4.03386693]
[1756602175834,1.46538053,205.06,204.92,4.03386693]
[1756602175835,7.87,205.02,204.92,4.03386693]
[1756602176026,114.59,205.02,204.92,4.03386693]
[1756602176430,2.38938822,205.01,204.92,4.03386693]
[1756602176634,2.38938822,205.0,204.92,4.03386693]
[1756602176834,2.38938822,204.99,204.92,4.03386693]
[1756602177035,2.38938822,204.98,204.92,4.03386693]
[1756602177232,2.38938822,204.97,204.93,2.39]
[1756602177431,2.38938822,204.96,204.93,2.39]
[1756602177736,2.38938822,204.95,204.94,2.39]
[1756602179041,2.38938822,204.95,204.92,2.39]
[1756602179342,2.38938822,204.94,204.92,2.39]
[1756602179541,2.38938822,204.93,204.92,2.39]
[1756602179939,2.38938822,204.93,204.91,4.03386693]
[1756602180142,2.38938822,204.92,204.89,6.42386693]
[1756602180336,2.38938822,204.91,204.9,2.39]
[1756602181141,2.38938822,204.91,204.88,4.03386693]
[1756602181443,7.87,204.96,204.86,7.76576708]
[1756602181444,7.87,204.96,204.9,2.39]
[1756602181645,10.25939174,204.95,204.9,2.39]
[1756602181843,2.38935902,204.94,204.9,6.42386693]
[1756602182038,2.38935902,204.93,204.89,4.03386693]
[1756602182236,2.38935902,204.92,204.89,6.42386693]
[1756602182441,2.38935902,204.91,204.9,6.42386693]
[1756602182646,7.87,204.99,204.9,2.39]
[1756602182841,7.87,204.99,204.9,6.43056536]
[1756602183341,7.87,204.99,204.9,2.39]
[1756602183847,7.87,204.99,204.9,6.43056536]
[1756602184046,7.87,204.99,204.9,2.39]
[1756602185748,7.87,204.99,204.89,4.04056536]
[1756602185948,7.87,204.99,204.88,4.04056536]
[1756602187648,7.87,204.99,204.89,6.45056536]
[1756602188741,7.87,204.99,204.9,6.45056536]
[1756602189950,7.87,204.99,204.9,2.41]
[1756602190451,7.87,204.99,204.89,4.04056536]
[1756602190651,7.87,204.99,204.88,4.04056536]
[1756602190853,7.87,204.99,204.89,2.41]
[1756602191051,7.83,205.06,204.92,4.04056536]
[1756602191248,7.83,205.06,204.91,2.41]
[1756602191453,7.83,205.04,204.9,4.04056536]
[1756602191755,73.58,205.07,204.9,4.04056536]
[1756602191756,7.83,205.02,204.9,6.45056536]
[1756602191950,7.83,205.02,204.91,4.04056536]
[1756602193053,7.83,205.02,204.9,6.45056536]
[1756602193254,7.83,205.02,204.91,4.04056536]
[1756602193856,7.83,205.02,204.92,4.04056536]
[1756602194251,7.83,205.02,204.91,4.04056536]
[1756602194556,2.41273333,205.01,204.91,4.04056536]
[1756602194758,2.41273333,205.0,204.92,6.45056536]
[1756602194952,2.41273333,204.99,204.92,6.45056536]
[1756602195156,2.41273333,204.98,204.94,4.04056536]
[1756602195354,2.41273333,204.97,204.95,2.41]
[1756602195553,2.41273333,204.96,204.95,2.41]
[1756602196159,7.83,205.06,204.96,2.41]
[1756602196457,7.83,205.06,204.97,2.41]
[1756602196654,7.83,205.06,204.97,6.45443179]
[1756602197255,7.83,205.06,204.98,1.46532618]
[1756602198357,7.83,205.06,204.97,6.45443179]
[1756602198557,7.83,205.06,204.97,2.41]
[1756602198753,9.29532618,205.06,204.95,5.50975797]
[1756602198954,9.29532618,205.06,204.95,1.46532618]
[1756602199158,9.29532618,205.06,204.95,5.50975797]
[1756602199556,9.29532618,205.06,204.94,4.04443179]
[1756602199959,110.49532618,205.06,204.94,4.04443179]
[1756602200559,137.01,205.06,204.95,4.04443179]
[1756602201263,7.83,205.06,204.95,4.04443179]
[1756602201564,7.83,205.06,204.97,5.50975797]
[1756602202162,7.83,205.06,204.96,6.45443179]
[1756602204067,7.83,205.06,204.96,2.41]
[1756602204267,7.83,205.06,204.96,6.45443179]
[1756602205168,7.83,205.06,204.96,2.41]
[1756602205961,9.29532618,205.06,204.96,2.41]
[1756602206468,7.83,205.06,204.96,2.41]
[1756602208269,7.83,205.04,204.96,2.41]
[1756602208465,2.35684733,205.03,204.96,2.41]
[1756602208670,2.35684733,205.02,204.96,2.41]
[1756602208866,7.83,205.0,204.95,4.04443179]
[1756602209174,2.35684733,204.99,204.95,4.04443179]
[1756602209366,2.35684733,204.98,204.95,6.43443179]
[1756602209669,2.35684733,204.97,204.95,6.43443179]
[1756602209869,2.35684733,204.96,204.95,6.43443179]
[1756602210672,2.35684733,204.96,204.95,2.39]
[1756602212673,2.35746912,204.96,204.95,2.39]
[1756602213078,2.35746912,204.96,204.95,6.43443179]
[1756602213571,2.35772468,204.96,204.95,6.43443179]
[1756602213773,2.35772468,204.96,204.92,4.04443179]
[1756602213969,2.35772468,204.95,204.92,4.04443179]
[1756602214168,2.35772468,204.94,204.92,4.04443179]
[1756602214374,2.35772468,204.93,204.91,2.39]
[1756602214577,2.35772468,204.92,204.91,2.39]
[1756602214980,2.35772468,204.92,204.89,4.04443179]
[1756602215174,98.4,205.06,204.83,104.30783054]
[1756602215175,7.83,204.9,204.88,4.04443179]
[1756602215480,10.18772468,204.89,204.84,6.43443179]
[1756602215675,10.18772468,204.88,204.84,2.39]
[1756602215881,2.35772468,204.87,204.83,100.31447207]
[1756602216177,2.35772468,204.86,204.83,4.04443179]
[1756602216377,2.35772468,204.85,204.83,4.04443179]
[1756602216570,7.83,204.89,204.83,4.04443179]
[1756602216571,2.35772468,204.84,204.83,4.04443179]
[1756602216769,2.35772468,204.84,204.82,4.04443179]
[1756602216969,2.35772468,204.83,204.82,4.04443179]
[1756602217681,2.35772468,204.83,204.81,4.04443179]
[1756602217981,7.83,204.89,204.81,6.44443179]
[1756602217982,2.35772468,204.82,204.81,6.44443179]
[1756602218482,2.35772468,204.82,204.81,7.90975797]
[1756602219484,7.83,204.89,204.81,3.86532618]
[1756602219677,2.35504169,204.88,204.83,4.04586549]
[1756602219884,2.35504169,204.87,204.83,6.44586549]
[1756602220182,2.35504169,204.86,204.83,6.44586549]
[1756602220377,2.35504169,204.85,204.83,2.4]
[1756602220578,2.35504169,204.84,204.83,2.4]
[1756602221576,2.35504169,204.84,204.81,7.91119167]
[1756602221777,7.83,204.89,204.81,7.91119167]
[1756602222076,2.35372199,204.88,204.81,7.91119167]
[1756602222277,2.35372199,204.87,204.81,1.46532618]
[1756602222477,2.35372199,204.86,204.81,1.46532618]
[1756602222674,1.46532618,204.92,204.77,7.77576708]
[1756602222675,7.32,204.84,204.79,4.04586549]
[1756602222875,2.35372199,204.83,204.79,7.91119167]
[1756602223080,2.35372199,204.82,204.79,7.91119167]
[1756602223580,7.32,204.86,204.79,3.86532618]
[1756602223776,2.35226918,204.85,204.78,4.04586549]
[1756602223985,1.46532618,204.92,204.75,5.37576708]
[1756602223986,7.32,204.83,204.76,4.04586549]
[1756602224178,2.35224402,204.82,204.76,4.04586549]
[1756602224379,2.35224402,204.81,204.76,2.4]
[1756602224585,7.32,204.83,204.75,5.51119167]
[1756602224586,2.35224402,204.8,204.75,5.51119167]
[1756602224779,7.32,204.83,204.76,6.44586549]
[1756602224980,2.35102433,204.82,204.78,1.46532618]
[1756602225180,7.32,204.87,204.79,2.4]
[1756602225384,2.35017661,204.86,204.79,2.4]
[1756602225580,2.35017661,204.85,204.79,2.4]
[1756602225780,2.35017661,204.85,204.77,4.04586549]
[1756602225781,2.35017661,204.84,204.78,3.86532618]
[1756602226083,65.28,204.92,204.78,3.86532618]
[1756602226084,2.35017661,204.83,204.78,3.86532618]
[1756602226284,2.35017661,204.82,204.78,3.86532618]
[1756602226483,7.32,204.85,204.78,3.86532618]
[1756602226782,2.34960574,204.84,204.78,3.86532618]
[1756602226984,2.34960574,204.83,204.77,1.46532618]
[1756602227279,7.32,204.81,204.77,1.46532618]
[1756602227587,7.32,204.89,204.77,1.46532618]
[1756602227784,7.32,204.87,204.77,1.46532618]
[1756602227975,2.34884434,204.86,204.77,1.46532618]
[1756602228179,2.34884434,204.85,204.76,6.44586549]
[1756602228378,7.32,204.87,204.76,6.44586549]
[1756602228379,2.34884434,204.84,204.78,1.46532618]
[1756602228584,2.34884434,204.83,204.79,2.4]
[1756602228781,7.32,204.87,204.79,2.4]
[1756602228987,2.34810552,204.86,204.79,2.4]
[1756602229285,2.34810552,204.85,204.79,2.4]
[1756602229480,9.66810552,204.84,204.79,2.4]
[1756602229784,7.32,204.84,204.79,2.4]
[1756602231189,7.32,204.91,204.79,2.4]
[1756602231376,7.32,204.89,204.78,1.46532618]
[1756602231576,7.32,204.87,204.78,1.46532618]
[1756602231784,2.34092925,204.86,204.78,1.46532618]
[1756602231984,2.34092925,204.85,204.78,1.46532618]
[1756602232179,2.34092925,204.84,204.78,1.46532618]
[1756602232376,2.34092925,204.83,204.78,1.46532618]
[1756602232575,7.32,204.85,204.78,3.86532618]
[1756602232781,2.34050133,204.84,204.78,3.86532618]
[1756602232979,7.32,204.85,204.78,3.86532618]
[1756602233176,2.34048473,204.84,204.78,3.86532618]
[1756602233379,7.32,204.85,204.78,3.86532618]
[1756602233582,2.34004454,204.84,204.78,3.86532618]
[1756602233779,7.32,204.85,204.78,3.86532618]
[1756602234086,2.34004428,204.84,204.78,3.86532618]
[1756602234279,2.34004428,204.84,204.75,4.04586549]
[1756602234280,7.32,204.95,204.81,1.46532618]
[1756602234486,7.32,204.93,204.81,3.86532618]
[1756602234683,7.32,204.91,204.81,3.86532618]
[1756602234879,7.32,204.89,204.81,3.86532618]
[1756602235080,2.33964292,204.88,204.81,3.86532618]
[1756602235288,2.33964292,204.87,204.81,3.86532618]
[1756602235483,7.32,204.89,204.81,3.86532618]
[1756602235681,2.33919952,204.88,204.81,3.86532618]
[1756602235881,2.33919952,204.87,204.81,3.86532618]
[1756602236081,7.32,204.89,204.81,3.86532618]
[1756602236290,2.33919926,204.88,204.81,3.86532618]
[1756602236488,2.33919926,204.87,204.81,3.86532618]
[1756602236791,7.32,204.89,204.81,3.86532618]
[1756602236992,2.33912254,204.88,204.81,3.86532618]
[1756602237188,2.33912254,204.87,204.81,2.4]
[1756602237384,9.65912254,204.86,204.81,3.86532618]
[1756602237582,7.32,204.86,204.81,3.86532618]
[1756602238982,7.32,204.86,204.82,2.4]
[1756602239790,7.32,204.93,204.82,2.4]
[1756602239993,7.32,204.91,204.82,2.4]
[1756602240286,2.33911215,204.9,204.84,1.46532618]
[1756602240494,7.32,204.88,204.84,1.46532618]
[1756602240693,7.32,204.86,204.84,1.46532618]
[1756602241695,128.72,204.95,204.84,1.46532618]
[1756602241696,7.32,204.94,204.84,1.46532618]
[1756602241998,7.32,204.92,204.84,1.46532618]
[1756602242195,128.72,204.95,204.84,1.46532618]
[1756602242196,7.32,204.9,204.84,1.46532618]
[1756602242389,2.33935037,204.89,204.84,1.46532618]
[1756602242590,9.65935037,204.88,204.81,1.46532618]
[1756602242793,2.33935037,204.87,204.81,1.46532618]
[1756602243096,2.33935037,204.86,204.82,2.4]
[1756602243396,7.32,204.88,204.82,1.46532618]
[1756602243692,7.32,204.86,204.82,2.4]
[1756602244298,2.34084917,204.85,204.82,2.4]
[1756602244498,7.32,204.86,204.82,2.4]
[1756602244699,2.34084943,204.85,204.82,2.4]
[1756602244899,7.32,204.86,204.82,2.4]
[1756602245089,2.34084891,204.85,204.82,2.4]
[1756602245294,7.32,204.86,204.82,2.4]
[1756602245494,2.34118248,204.85,204.82,2.4]
[1756602245790,7.32,204.86,204.82,2.4]
[1756602245994,2.34118248,204.85,204.82,2.4]
[1756602246195,7.32,204.86,204.82,2.4]
[1756602246396,2.34168638,204.85,204.82,2.4]
[1756602246597,7.32,204.86,204.82,2.4]
[1756602246795,2.34167058,204.85,204.82,2.4]
[1756602247097,7.32,204.86,204.82,2.4]
[1756602247297,83.1446994,206.19,204.85,2.39]
[1756602247298,7.32,204.95,204.85,2.39]
[1756602247496,7.32,204.95,204.91,2.39]
[1756602248102,7.37,205.03,204.9,3.85532618]
[1756602248294,7.37,205.03,204.93,1.46532618]
[1756602248499,7.37,205.03,204.93,3.85532618]
[1756602248805,7.37,205.03,204.9,1.46532618]
[1756602249103,77.82917401,205.08,204.85,6.43586549]
[1756602249104,7.37,205.0,204.85,6.43586549]
[1756602249298,1.46532618,204.95,204.84,90.41252079]
[1756602249694,7.37,204.94,204.84,90.41252079]
[1756602250503,1.46532618,204.95,204.84,90.41252079]
[1756602251004,7.37,204.94,204.84,90.41252079]
[1756602251199,7.37,204.94,204.86,1.46532618]
[1756602251993,7.37,204.94,204.85,6.43586549]
[1756602252205,7.37,204.95,204.84,90.41252079]
[1756602252602,7.37,204.95,204.86,3.85532618]
[1756602252803,7.37,204.95,204.89,1.46532618]
[1756602254100,0.84917401,205.08,204.92,1.46532618]
[1756602254101,7.37,205.04,204.92,1.46532618]
[1756602257010,7.37,205.04,204.92,3.85532618]
[1756602257204,7.37,205.04,204.95,1.46532618]
[1756602258807,7.37,205.04,204.92,6.43586549]
[1756602259007,7.37,205.04,204.92,2.39]
[1756602259507,7.37,205.04,204.92,6.43586549]
[1756602259700,7.37,205.04,204.92,2.39]
[1756602259903,7.37,205.04,204.92,6.43586549]
[1756602261309,7.37,205.04,204.92,2.39]
[1756602261516,7.37,205.04,204.95,2.38]
[1756602264212,7.37,205.02,204.89,2.38]
[1756602264914,100.07,205.02,204.89,2.38]
[1756602265708,7.37,205.02,204.89,2.38]
[1756602266010,7.37,205.02,204.9,1.46532618]
[1756602266606,7.37,205.02,204.91,2.38]
[1756602268219,7.37,205.02,204.88,5.51119167]
[1756602268813,7.37,205.02,204.89,2.38]
[1756602269009,7.37,205.02,204.91,1.46532618]
[1756602270016,7.37,205.02,204.92,2.38]
[1756602270512,7.37,205.02,204.95,2.38]
[1756602271108,7.37,205.02,204.95,3.84532618]
[1756602272210,7.37,205.02,204.96,1.46532618]
[1756602272716,7.37,205.02,204.95,2.38]
[1756602274219,7.37,205.08,204.98,2.38]
[1756602274416,7.37,205.08,205.0,1.46532618]
[1756602275508,7.37,205.08,204.95,1.46532618]
[1756602278619,7.37,205.08,204.96,2.39]
[1756602281924,7.37,205.08,204.93,5.51119167]
[1756602282223,7.37,205.08,204.92,6.43586549]
[1756602282517,7.37,205.08,204.93,5.51119167]
[1756602283414,7.37,205.08,204.93,4.04586549]
[1756602283726,7.37,205.08,204.93,5.51119167]
[1756602283921,7.29,205.05,204.92,6.43586549]
[1756602284227,7.29,205.02,204.92,2.39]
[1756602284622,7.29,205.02,204.89,5.51119167]
[1756602285121,7.29,204.99,204.89,4.04586549]
[1756602286323,7.29,204.99,204.88,6.43586549]
[1756602286525,7.29,204.99,204.88,2.39]
[1756602287226,7.29,204.99,204.86,4.04586549]
[1756602287629,7.29,204.96,204.86,4.04586549]
[1756602287823,7.29,204.96,204.85,5.51119167]
[1756602288327,7.29,204.96,204.84,96.84838628]
[1756602288529,7.29,205.05,204.94,2.39]
[1756602288729,7.29,205.15,204.99,1.46532618]
[1756602288924,7.29,205.12,204.99,1.46532618]
[1756602289129,9.32,205.15,204.97,2.39]
[1756602289130,7.29,205.09,204.97,2.39]
[1756602290729,1.46532618,205.01,204.91,4.04586549]
[1756602290932,7.29,205.0,204.88,4.04586549]
[1756602291630,7.29,205.0,204.87,3.85532618]
[1756602291631,7.29,205.0,204.89,4.04586549]
[1756602293122,8.75532618,205.0,204.88,4.04586549]
[1756602293323,8.75532618,205.0,204.87,2.39]
[1756602293324,8.75532618,205.0,204.87,6.43586549]
[1756602293532,8.75532618,205.0,204.88,5.51119167]
[1756602293830,8.75532618,205.0,204.88,1.46532618]
[1756602294537,7.29,205.0,204.88,5.51119167]
[1756602295029,7.29,205.0,204.89,4.04586549]
[1756602295833,7.29,205.0,204.91,1.46532618]
[1756602296032,7.29,205.0,204.91,5.51119167]
[1756602298739,7.29,205.0,204.92,4.04586549]
[1756602299038,89.51,205.08,204.94,5.51119167]
[1756602300635,1.46532618,205.06,204.94,4.04586549]
[1756602300831,7.29,205.05,204.91,1.46532618]
[1756602301139,7.29,205.02,204.91,5.51119167]
[1756602301936,7.29,205.02,204.94,1.46532618]
[1756602302136,7.29,205.02,204.92,4.04586549]
[1756602302440,7.29,205.02,204.91,1.46532618]
[1756602302842,7.29,205.02,204.9,4.04586549]
[1756602305845,7.29,205.02,204.91,1.46532618]
[1756602306145,7.29,205.02,204.92,4.04586549]
[1756602306343,7.29,205.02,204.94,1.46532618]
[1756602306944,7.29,205.02,204.94,7.90119167]
[1756602307445,7.29,205.08,204.97,1.46532618]
[1756602307845,7.29,205.08,204.98,2.38]
[1756602308843,7.29,205.08,205.0,1.46532618]
[1756602311146,7.29,205.08,204.98,2.38]
[1756602312541,7.29,205.08,204.96,1.46532618]
[1756602312942,7.29,205.08,204.99,1.46532618]
[1756602319252,7.29,205.08,204.97,2.38]
[1756602320550,7.29,205.08,204.95,4.04586549]
[1756602320750,7.82,205.06,204.93,7.89119167]
[1756602321553,7.82,205.06,204.93,5.51119167]
[1756602321756,7.82,205.03,204.89,6.42586549]
[1756602322052,7.82,205.0,204.89,6.42586549]
[1756602324756,7.82,205.0,204.89,2.38]
[1756602326445,7.82,204.97,204.88,4.04586549]
[1756602326755,1.46532618,204.92,204.82,4.04586549]
[1756602326951,1.46532618,204.92,204.8,4.04586549]
[1756602326952,10.18917402,204.91,204.8,4.04586549]
[1756602327152,2.36917402,204.9,204.8,4.04586549]
[1756602327450,7.82,204.91,204.8,4.04586549]
[1756602327451,2.36917402,204.89,204.8,4.04586549]
[1756602327648,2.36917402,204.88,204.8,4.04586549]
[1756602327853,2.36917402,204.87,204.79,6.42586549]
[1756602328046,7.82,204.88,204.79,2.38]
[1756602328251,2.36772036,204.87,204.79,2.38]
[1756602328553,2.36772036,204.86,204.79,2.38]
[1756602328757,2.36772036,204.85,204.79,2.38]
[1756602328953,2.36772036,204.84,204.79,4.04586549]
[1756602329159,10.18772036,204.83,204.78,4.04586549]
[1756602329352,1.46532618,204.92,204.77,4.04586549]
[1756602329353,10.18772036,204.82,204.77,4.04586549]
[1756602329554,2.36772036,204.81,204.77,6.42586549]
[1756602329751,2.36772036,204.8,204.77,6.42586549]
[1756602329961,7.82,204.82,204.77,6.42586549]
[1756602330159,2.36526466,204.81,204.77,2.38]
[1756602330359,2.36526466,204.8,204.77,2.38]
[1756602330661,2.36396154,204.79,204.73,6.42586549]